fUSD/lending_fUSD_20250523
["ID","MTS","AMOUNT","RATE_DAILY","PERIOD"]
[362147715,1748038244825,-500.0,0.000314,2]
[362147716,1748038244834,-500.0,0.000314,2]
[362147717,1748038244844,-500.0,0.000314,2]
[362147718,1748038244854,-500.0,0.000314,2]
[362147719,1748038244863,-500.0,0.000314,2]
[362147720,1748038244872,-520.0,0.000314,2]
[362147721,1748038244882,-500.0,0.000314,2]
[362147722,1748038244892,-767.0,0.000314,2]
[362147723,1748038244902,-345.742299,0.000314,7]
[362147724,1748038244911,-345.742308,0.000314,7]
[362147725,1748038244921,-150.0,0.00031417,7]
[362147726,1748038244931,-200.0,0.00031475,13]
[362147727,1748038244941,-200.0,0.00031475,13]
[362147728,1748038244951,-200.0,0.00031475,13]
[362147729,1748038244961,-201.0,0.00031475,13]
[362147730,1748038244971,-200.0,0.00031475,2]
[362147731,1748038244981,-200.0,0.00031475,2]
[362147732,1748038244991,-200.0,0.00031475,2]
[362147733,1748038245000,-200.0,0.00031475,2]
[362147734,1748038245010,-200.0,0.00031475,2]
[362147735,1748038245019,-200.0,0.00031475,2]
[362147736,1748038245029,-200.0,0.00031475,2]
[362147737,1748038245038,-200.0,0.00031475,2]
[362147738,1748038245048,-200.0,0.00031475,2]
[362147739,1748038245058,-200.0,0.00031475,2]
[362147740,1748038245068,-200.0,0.00031475,2]
[362147741,1748038245078,-200.0,0.00031475,2]
[362147742,1748038245087,-200.0,0.00031475,2]
[362147743,1748038245098,-200.0,0.00031475,2]
[362147744,1748038245107,-200.0,0.00031475,2]
[362147745,1748038245117,-200.0,0.00031475,2]
[362147746,1748038245126,-200.0,0.00031475,2]
[362147747,1748038245135,-200.0,0.00031475,13]
[362147748,1748038245145,-200.0,0.00031475,13]
[362147749,1748038245154,-200.0,0.00031475,13]
[362147750,1748038245163,-200.0,0.00031475,13]
[362147751,1748038245172,-200.0,0.00031475,13]
[362147752,1748038245182,-200.0,0.00031475,2]
[362147753,1748038245191,-200.0,0.00031475,2]
[362147754,1748038245200,-200.0,0.00031475,2]
[362147755,1748038245210,-200.0,0.00031475,2]
[362147756,1748038245219,-200.0,0.00031475,2]
[362147757,1748038245229,-200.0,0.00031475,2]
[362147758,1748038245238,-200.0,0.00031475,2]
[362147759,1748038245247,-200.0,0.00031475,2]
[362147760,1748038245256,-200.0,0.00031475,2]
[362147761,1748038245266,-200.0,0.00031475,2]
[362147762,1748038245275,-200.0,0.00031475,2]
[362147763,1748038245285,-200.0,0.00031475,2]
[362147764,1748038245294,-200.0,0.00031475,2]
[362147765,1748038245304,-200.0,0.00031475,2]
[362147766,1748038245313,-200.0,0.00031475,2]
[362147767,1748038245324,-200.0,0.00031475,2]
[362147768,1748038245335,-200.0,0.00031475,2]
[362147769,1748038245345,-340.0,0.00031475,2]
[362147770,1748038245354,-211.0,0.00031475,13]
[362147771,1748038245407,-150.0,0.00031483,7]
[362147772,1748038245416,-150.0,0.00031483,7]
[362147773,1748038245425,-150.0,0.00031483,7]
[362147774,1748038245435,-150.0,0.00031483,7]
[362147775,1748038245445,-150.0,0.00031483,7]
[362147776,1748038245455,-165.12,0.0003149,2]
[362147777,1748038245464,-1000.0,0.00031521,5]
[362147778,1748038245473,-1000.0,0.00031521,5]
[362147779,1748038245482,-293.93252307,0.00031521,5]
[362147780,1748038245491,-1000.0,0.00031521,5]
[362147781,1748038245499,-303.1598864,0.00031521,5]
[362147782,1748038245509,-1000.0,0.00031521,5]
[362147783,1748038245518,-1000.0,0.00031521,5]
[362147784,1748038245526,-1000.0,0.00031521,5]
[362147785,1748038245536,-1000.0,0.00031521,5]
[362147786,1748038245545,-1030.34875416,0.00031521,5]
[362147787,1748038245555,-1000.0,0.00031521,5]
[362147788,1748038245565,-150.0,0.00031548,7]
[362147789,1748038245574,-101168.2969973,0.000316,2]
[362147790,1748038245583,-18783.58,0.000316,7]
[362147791,1748038245592,-863.45,0.000316,7]
[362147792,1748038245602,-250.0,0.000316,7]
[362147793,1748038245612,-250.0,0.000316,7]
[362147794,1748038245622,-250.0,0.000316,7]
[362147795,1748038245631,-250.0,0.000316,7]
[362147796,1748038245641,-250.0,0.000316,7]
[362147797,1748038245651,-351.0,0.000316,7]
[362147798,1748038245661,-150.0,0.00031614,7]
[362147799,1748038245671,-725.22970311,0.00031616,5]
[362147800,1748038245680,-150.0,0.0003162,7]
[362147801,1748038245691,-936.0,0.00031629,2]
[362147802,1748038245700,-799.0,0.00031629,2]
[362147803,1748038245710,-554.0,0.00031629,2]
[362147804,1748038245719,-1461.0,0.00031629,2]
[362147805,1748038245729,-921.0,0.00031629,2]
[362147806,1748038245738,-1151.0,0.00031629,2]
[362147807,1748038245747,-155.0,0.00031644,2]
[362147808,1748038245756,-152.0,0.00031677,4]
[362147809,1748038245766,-150.0,0.0003168,7]
[362147810,1748038245775,-150.0,0.00031699,7]
[362147811,1748038245785,-16000.0,0.00031702,2]
[362147812,1748038245795,-150.0,0.00031745,7]
[362147813,1748038245804,-154.0,0.00031802,2]
[362147814,1748038245813,-150.0,0.00031811,7]
[362147815,1748038245823,-157.69236961,0.00031842,15]
[362147816,1748038245832,-150.0,0.00031877,7]
[362147817,1748038245841,-1897.84,0.00031879,2]
[362147818,1748038245850,-150.0,0.0003188,120]
[362147819,1748038245859,-170.33310645,0.00031881,2]
[362147820,1748038245868,-150.0,0.00031895,7]
[362147821,1748038245878,-2132.68,0.000319,2]
[362147822,1748038245887,-150.0,0.00031914,7]
[362147823,1748038245896,-660.19275359,0.00031921,5]
[362147824,1748038245906,-150.0,0.00031942,7]
[362147825,1748038245915,-4000.0,0.0003195,2]
[362147826,1748038245924,-150.0,0.00031986,7]
[362147827,1748038245934,-150.0,0.00031986,7]
[362147828,1748038245943,-200.0,0.00032,120]
[362147829,1748038245952,-10000.0,0.00032,30]
[362147830,1748038245961,-152.74476856,0.00032,3]
[362147831,1748038245970,-1000.6577629,0.00032,120]
[362147832,1748038245979,-500.0,0.00032,2]
[362147833,1748038245988,-151.0,0.00032,5]
[362147834,1748038245997,-1536.40931717,0.00032,2]
[362147835,1748038246007,-900.0,0.00032,33]
[362147836,1748038246015,-200.0,0.00032,120]
[362147837,1748038246025,-706.01952162,0.00032,5]
[362147838,1748038246034,-5434.0,0.00032,2]
[362147839,1748038246042,-200.0,0.00032,60]
[362147840,1748038246051,-500.0,0.00032,2]
[362147841,1748038246061,-150.0,0.00032008,7]
[362147842,1748038246070,-170.17,0.00032055,2]
[362147843,1748038246079,-170.17,0.00032055,2]
[362147844,1748038246088,-170.17,0.00032055,2]
[362147845,1748038246097,-170.17,0.00032055,2]
[362147846,1748038246106,-223.06,0.00032055,2]
[362147847,1748038246115,-170.17,0.00032055,2]
[362147848,1748038246124,-353.5,0.00032055,2]
[362147849,1748038246135,-353.5,0.00032055,2]
[362147850,1748038246146,-706.4,0.00032055,2]
[362147851,1748038246157,-353.5,0.00032055,2]
[362147852,1748038246166,-706.25,0.00032055,2]
[362147853,1748038246175,-353.5,0.00032055,2]
[362147854,1748038246186,-353.5,0.00032055,2]
[362147855,1748038246195,-353.5,0.00032055,2]
[362147856,1748038246205,-352.9,0.00032055,2]
[362147857,1748038246214,-162.87,0.00032055,2]
[362147858,1748038246225,-471.58,0.00032055,2]
[362147859,1748038246235,-162.87,0.00032055,2]
[362147860,1748038246244,-162.59,0.00032055,2]
[362147861,1748038246252,-546.32808325,0.00032068,5]
[362147862,1748038246262,-1500.0,0.00032068,5]
[362147863,1748038246271,-1001.64549991,0.00032068,5]
[362147864,1748038246280,-628.20398942,0.00032068,5]
[362147865,1748038246289,-1500.0,0.00032068,5]
[362147866,1748038246299,-1002.37427637,0.00032068,5]
[362147867,1748038246309,-1500.0,0.00032068,5]
[362147868,1748038246318,-1500.0,0.00032068,5]
[362147869,1748038246331,-150.0,0.00032074,7]
[362147870,1748038246341,-150.0,0.0003213,7]
[362147871,1748038246350,-150.0,0.00032139,7]
[362147872,1748038246360,-150.0,0.00032169,7]
[362147874,1748038246371,-155.0,0.00032192,2]
[362147876,1748038246380,-267.27,0.000322,120]
[362147877,1748038246390,-150.0,0.00032205,7]
[362147878,1748038246401,-5524.95096052,0.0003222,30]
[362147879,1748038246410,-150.0,0.00032238,7]
[362147880,1748038246420,-150.0,0.00032238,7]
[362147881,1748038246429,-150.0,0.00032271,7]
[362147882,1748038246438,-150.0,0.0003229,2]
[362147883,1748038246448,-420.0,0.0003229,3]
[362147884,1748038246457,-150.0,0.00032336,7]
[362147885,1748038246466,-150.0,0.00032346,7]
[362147886,1748038246476,-159.21,0.00032383,2]
[362147887,1748038246485,-227.01298832,0.0003239,4]
[362147888,1748038246494,-18783.58,0.000324,7]
[362147889,1748038246504,-863.45,0.000324,7]
[362147890,1748038246513,-150.0,0.00032402,7]
[362147891,1748038246523,-150.0,0.00032444,7]
[362147892,1748038246532,-150.0,0.00032468,7]
[362147893,1748038246542,-150.0,0.0003249,7]
[362147894,1748038246551,-272.72,0.000325,120]
[362147895,1748038246561,-8880.69690004,0.000325,120]
[362147896,1748038246570,-551.39,0.000325,120]
[362147897,1748038246580,-150.0,0.00032533,7]
[362147898,1748038246590,-150.0,0.00032562,7]
[362147899,1748038246599,-4000.0,0.0003258,2]
[362147900,1748038246608,-237.49,0.00032585,2]
[362147901,1748038246617,-1000.0,0.00032595,2]
[362147902,1748038246627,-150.0,0.00032599,7]
[362147903,1748038246636,-671.38,0.00032599,120]
[362147904,1748038246647,-200.16081718,0.00032603,2]
[362147905,1748038246656,-1483.39811155,0.00032616,5]
[362147906,1748038246665,-2000.0,0.00032616,5]
[362147907,1748038246675,-501.08440316,0.00032616,5]
[362147908,1748038246685,-2000.0,0.00032616,5]
[362147909,1748038246695,-150.0,0.00032665,7]
[362147910,1748038246706,-179.82,0.00032677,2]
[362147911,1748038246715,-332.56,0.00032718,2]
[362147912,1748038246725,-150.0,0.00032718,7]
[362147913,1748038246735,-150.0,0.0003273,7]
[362147914,1748038246745,-155.0,0.0003274,2]
[362147915,1748038246755,-150.0,0.00032777,7]
[362147916,1748038246764,-150.0,0.00032796,7]
[362147917,1748038246773,-400.0,0.00032799,10]
[362147918,1748038246782,-1000.0,0.00032799,2]
[362147919,1748038246791,-638.54,0.000328,60]
[362147920,1748038246801,-4669.11506138,0.000328,2]
[362147921,1748038246811,-157.69236961,0.00032833,15]
[362147922,1748038246823,-521.16221723,0.00032843,2]
[362147923,1748038246833,-150.0,0.00032853,2]
[362147924,1748038246843,-150.0,0.00032862,7]
[362147925,1748038246852,-300.0,0.0003287,2]
[362147926,1748038246861,-400.0,0.0003287,2]
[362147927,1748038246871,-1000.0,0.00032876,60]
[362147928,1748038246880,-1000.0,0.00032876,60]
[362147929,1748038246888,-1000.0,0.00032876,60]
[362147930,1748038246897,-941.36792847,0.00032876,60]
[362147931,1748038246906,-5000.0,0.00032876,2]
[362147932,1748038246915,-1000.0,0.00032876,120]
[362147933,1748038246924,-319.36,0.00032877,2]
[362147934,1748038246933,-162.87,0.00032877,2]
[362147935,1748038246942,-162.87,0.00032877,2]
[362147936,1748038246952,-162.87,0.00032877,2]
[362147937,1748038246961,-162.87,0.00032877,2]
[362147938,1748038246971,-162.87,0.00032877,2]
[362147939,1748038246980,-162.87,0.00032877,2]
[362147940,1748038246989,-162.87,0.00032877,2]
[362147941,1748038246999,-162.12,0.00032877,2]
[362147942,1748038247008,-353.5,0.00032877,2]
[362147943,1748038247017,-150.39,0.00032877,2]
[362147944,1748038247026,-150.39,0.00032877,2]
[362147945,1748038247035,-150.39,0.00032877,2]
[362147946,1748038247044,-300.49,0.00032877,2]
[362147947,1748038247053,-150.14,0.00032877,2]
[362147948,1748038247062,-150.39,0.00032877,2]
[362147949,1748038247070,-150.39,0.00032877,2]
[362147950,1748038247079,-150.39,0.00032877,2]
[362147951,1748038247088,-150.39,0.00032877,2]
[362147952,1748038247097,-150.39,0.00032877,2]
[362147953,1748038247106,-150.39,0.00032877,2]
[362147954,1748038247115,-162.66,0.00032877,2]
[362147955,1748038247125,-150.39,0.00032877,2]
[362147956,1748038247134,-150.39,0.00032877,2]
[362147957,1748038247143,-150.39,0.00032877,2]
[362147958,1748038247152,-150.39,0.00032877,2]
[362147959,1748038247161,-150.39,0.00032877,2]
[362147960,1748038247170,-150.39,0.00032877,2]
[362147961,1748038247180,-150.39,0.00032877,2]
[362147962,1748038247190,-150.39,0.00032877,2]
[362147963,1748038247199,-584.0,0.00032877,2]
[362147964,1748038247210,-150.0,0.0003288,120]
[362147965,1748038247218,-170.33310645,0.00032888,2]
[362147966,1748038247228,-13287.91808137,0.00032888,2]
[362147967,1748038247237,-1000.0,0.00032904,120]
[362147968,1748038247246,-584.0,0.00032904,2]
[362147969,1748038247255,-150.0,0.00032927,7]
[362147970,1748038247264,-1000.0,0.00032931,120]
[362147971,1748038247273,-584.0,0.00032932,2]
[362147972,1748038247282,-879.26302007,0.00032958,120]
[362147973,1748038247291,-584.0,0.00032959,2]
[362147974,1748038247300,-300.0,0.0003297,2]
[362147975,1748038247309,-400.0,0.0003297,2]
[362147976,1748038247318,-153.64244192,0.00032973,5]
[362147977,1748038247333,-584.0,0.00032987,2]
[362147978,1748038247342,-279.41577132,0.00032987,3]
[362147979,1748038247352,-233.10363644,0.00032993,7]
[362147980,1748038247362,-197.46439698,0.00032993,7]
[362147981,1748038247374,-215.10720188,0.00032993,7]
[362147982,1748038247383,-161.46979035,0.00032993,7]
[362147983,1748038247392,-223.2875609,0.00032993,7]
[362147984,1748038247401,-270.0634431,0.00032993,7]
[362147985,1748038247410,-244.94932606,0.00032993,7]
[362147986,1748038247420,-164.276764,0.00032993,7]
[362147987,1748038247429,-200.92397517,0.00032993,7]
[362147988,1748038247439,-184.11198449,0.00032993,7]
[362147989,1748038247448,-219.66986215,0.00032993,7]
[362147990,1748038247458,-5744.25448224,0.00033,120]
[362147991,1748038247468,-900.0,0.00033,34]
[362147992,1748038247477,-2843.967234,0.00033,2]
[362147993,1748038247486,-730.0,0.00033,2]
[362147994,1748038247495,-160.0,0.00033,2]
[362147995,1748038247505,-160.0,0.00033,2]
[362147996,1748038247514,-160.0,0.00033,2]
[362147997,1748038247524,-160.0,0.00033,2]
[362147998,1748038247533,-160.0,0.00033,2]
[362147999,1748038247543,-160.0,0.00033,2]
[362148000,1748038247552,-160.0,0.00033,2]
[362148001,1748038247562,-160.0,0.00033,2]
[362148002,1748038247571,-160.0,0.00033,2]
[362148003,1748038247580,-160.0,0.00033,2]
[362148004,1748038247590,-160.0,0.00033,2]
[362148005,1748038247599,-160.0,0.00033,2]
[362148006,1748038247608,-160.0,0.00033,2]
[362148007,1748038247617,-160.0,0.00033,2]
[362148008,1748038247627,-160.0,0.00033,2]
[362148009,1748038247637,-160.0,0.00033,2]
[362148010,1748038247646,-160.0,0.00033,2]
[362148011,1748038247655,-160.0,0.00033,2]
[362148012,1748038247665,-160.0,0.00033,2]
[362148013,1748038247677,-160.0,0.00033,2]
[362148014,1748038247686,-183.099999,0.00033,2]
[362148015,1748038247696,-4311.59636753,0.00033,2]
[362148016,1748038247706,-191.40175099,0.00033,120]
[362148017,1748038247716,-3000.0,0.00033,2]
[362148018,1748038247725,-3000.0,0.00033,2]
[362148019,1748038247735,-3000.0,0.00033,2]
[362148020,1748038247745,-1288.7269,0.00033,2]
[362148021,1748038247756,-3000.0,0.00033,2]
[362148022,1748038247766,-290.0,0.00033,7]
[362148023,1748038247775,-1448.65601026,0.00033,5]
[362148024,1748038247784,-200.000001,0.00033,2]
[362148025,1748038247793,-24282.35713302,0.00033,2]
[362148026,1748038247802,-43732.0,0.00033,120]
[362148027,1748038247811,-4373.0,0.00033,120]
[362148028,1748038247821,-31000.0,0.00033,90]
[362148029,1748038247830,-977.25347896,0.00033,120]
[362148030,1748038247839,-65749.27,0.00033,35]
[362148031,1748038247848,-340.677955,0.00033,14]
[362148032,1748038247859,-3000.0,0.00033,2]
[362148033,1748038247870,-154.77,0.00033,2]
[362148034,1748038247882,-584.0,0.00033014,2]
[362148035,1748038247892,-584.0,0.00033041,2]
[362148036,1748038247902,-584.0,0.00033069,2]
[362148037,1748038247911,-584.0,0.00033096,2]
[362148038,1748038247920,-584.0,0.00033124,2]
[362148039,1748038247930,-200.0,0.00033151,2]
[362148040,1748038247939,-584.0,0.00033151,2]
[362148041,1748038247948,-2187.69414131,0.00033164,5]
[362148042,1748038247957,-2500.0,0.00033164,5]
[362148043,1748038247966,-584.0,0.00033178,2]
[362148044,1748038247975,-233594.18564946,0.0003319,2]
[362148045,1748038247986,-18783.58,0.000332,14]
[362148046,1748038247996,-863.45,0.000332,14]
[362148047,1748038248006,-2000.0,0.000332,2]
[362148048,1748038248014,-584.0,0.00033206,2]
[362148049,1748038248023,-584.0,0.00033233,2]
[362148050,1748038248032,-584.0,0.00033261,2]
[362148051,1748038248040,-150.0,0.00033268,2]
[362148052,1748038248050,-156.0,0.00033269,30]
[362148053,1748038248059,-584.0,0.00033288,2]
[362148054,1748038248068,-155.0,0.00033288,2]
[362148055,1748038248077,-500.41662344,0.000333,15]
[362148056,1748038248086,-584.0,0.00033315,2]
[362148057,1748038248095,-1897.84,0.00033328,2]
[362148058,1748038248104,-584.0,0.00033343,2]
[362148059,1748038248113,-584.0,0.0003337,2]
[362148060,1748038248123,-1922.91,0.00033378,2]
[362148061,1748038248136,-584.0,0.00033398,2]
[362148062,1748038248146,-160.0,0.000334,4]
[362148063,1748038248155,-595.18461511,0.00033414,3]
[362148064,1748038248165,-5000.0,0.00033424,3]
[362148065,1748038248174,-584.0,0.00033425,2]
[362148066,1748038248183,-584.0,0.00033452,2]
[362148067,1748038248193,-584.0,0.0003348,2]
[362148068,1748038248202,-77254.04649924,0.000335,7]
[362148069,1748038248212,-251.2,0.000335,31]
[362148070,1748038248222,-251.2,0.000335,31]
[362148071,1748038248231,-251.2,0.000335,31]
[362148072,1748038248240,-251.2,0.000335,31]
[362148073,1748038248249,-251.2,0.000335,31]
[362148074,1748038248259,-251.2,0.000335,31]
[362148075,1748038248269,-251.2,0.000335,31]
[362148076,1748038248278,-251.2,0.000335,31]
[362148077,1748038248288,-251.2,0.000335,31]
[362148078,1748038248298,-251.2,0.000335,31]
[362148079,1748038248307,-251.2,0.000335,31]
[362148080,1748038248317,-251.2,0.000335,31]
[362148081,1748038248332,-601.06387561,0.00033507,2]
[362148082,1748038248342,-227.01298832,0.00033645,5]
[362148083,1748038248351,-500.0,0.00033671,2]
[362148084,1748038248362,-204.18,0.00033699,2]
[362148085,1748038248372,-273.74,0.00033699,2]
[362148086,1748038248381,-150.39,0.00033699,2]
[362148087,1748038248391,-150.39,0.00033699,2]
[362148088,1748038248404,-150.39,0.00033699,2]
[362148089,1748038248414,-150.39,0.00033699,2]
[362148090,1748038248424,-150.39,0.00033699,2]
[362148091,1748038248433,-150.39,0.00033699,2]
[362148092,1748038248444,-150.39,0.00033699,2]
[362148093,1748038248453,-150.39,0.00033699,2]
[362148094,1748038248464,-150.39,0.00033699,2]
[362148095,1748038248474,-3000.0,0.00033712,5]
[362148096,1748038248483,-232.44,0.000338,4]
[362148097,1748038248493,-157.69236961,0.00033824,15]
[362148098,1748038248503,-155.0,0.00033836,2]
[362148099,1748038248512,-12500.0,0.00033842,5]
[362148100,1748038248522,-12500.0,0.00033851,5]
[362148101,1748038248533,-12500.0,0.00033851,5]
[362148102,1748038248543,-12500.0,0.0003386,5]
[362148103,1748038248553,-12500.0,0.0003386,5]
[362148104,1748038248563,-12500.0,0.0003386,5]
[362148105,1748038248573,-12500.0,0.00033868,5]
[362148106,1748038248583,-12500.0,0.00033868,5]
[362148107,1748038248592,-12500.0,0.00033868,5]
[362148108,1748038248602,-12500.0,0.00033877,5]
[362148109,1748038248612,-12500.0,0.00033877,5]
[362148110,1748038248622,-12500.0,0.00033877,5]
[362148111,1748038248632,-150.0,0.0003388,120]
[362148112,1748038248642,-12500.0,0.00033886,5]
[362148113,1748038248652,-12500.0,0.00033886,5]
[362148114,1748038248662,-12500.0,0.00033886,5]
[362148115,1748038248671,-12500.0,0.00033886,5]
[362148116,1748038248681,-170.33310645,0.00033894,2]
[362148117,1748038248691,-20000.0,0.000339,120]
[362148118,1748038248700,-170.46,0.00033904,120]
[362148119,1748038248712,-5000.0,0.00033972,4]
[362148120,1748038248721,-722.73,0.00033973,2]
[362148121,1748038248731,-500.0,0.00034,3]
[362148122,1748038248741,-900.0,0.00034,35]
[362148123,1748038248750,-976.96,0.00034,2]
[362148124,1748038248760,-200.0,0.00034,120]
[362148125,1748038248770,-10381.13381367,0.00034,5]
[362148126,1748038248780,-4912.47822202,0.00034,7]
[362148127,1748038248790,-414.96530768,0.00034,2]
[362148128,1748038248800,-1240.41976562,0.00034,2]
[362148129,1748038248810,-18783.58,0.00034,14]
[362148130,1748038248820,-200.0,0.00034,60]
[362148131,1748038248830,-863.45,0.00034,14]
[362148132,1748038248840,-332.56,0.00034088,2]
[362148133,1748038248850,-78151.40573178,0.000341,2]
[362148134,1748038248859,-237.49,0.00034137,2]
[362148135,1748038248869,-180.3440586,0.00034179,30]
[362148136,1748038248879,-5000.00000099,0.000342,15]
[362148137,1748038248888,-289.095,0.00034246,2]
[362148138,1748038248898,-150.0,0.00034247,2]
[362148139,1748038248908,-18587.71,0.00034247,2]
[362148140,1748038248917,-3379.63551882,0.0003426,5]
[362148141,1748038248927,-9035.0,0.00034308,3]
[362148142,1748038248937,-521.16221723,0.00034329,2]
[362148143,1748038248946,-155.0,0.00034384,2]
[362148144,1748038248957,-1000.0,0.000344,14]
[362148145,1748038248967,-160.0,0.000344,8]
[362148146,1748038248977,-150.052404,0.00034448,120]
[362148147,1748038248986,-210.0,0.00034453,11]
[362148148,1748038248995,-5800.0,0.00034461,2]
[362148149,1748038249005,-5800.0,0.00034469,2]
[362148150,1748038249014,-5800.0,0.00034477,2]
[362148151,1748038249023,-5800.0,0.00034486,2]
[362148152,1748038249033,-5800.0,0.00034495,2]
[362148153,1748038249042,-5800.0,0.00034503,2]
[362148154,1748038249052,-5800.0,0.00034512,2]
[362148155,1748038249061,-5800.0,0.00034512,2]
[362148156,1748038249071,-5800.0,0.0003452,2]
[362148157,1748038249080,-5800.0,0.0003452,2]
[362148158,1748038249090,-5800.0,0.0003452,2]
[362148159,1748038249099,-5000.0,0.0003452,5]
[362148160,1748038249109,-469.85,0.00034629,2]
[362148161,1748038249118,-799.0,0.00034629,2]
[362148162,1748038249128,-554.0,0.00034629,2]
[362148163,1748038249137,-1461.0,0.00034629,2]
[362148164,1748038249147,-921.0,0.00034629,2]
[362148165,1748038249157,-1151.0,0.00034629,2]
[362148166,1748038249166,-251.2,0.000347,31]
[362148167,1748038249176,-251.2,0.000347,31]
[362148168,1748038249185,-251.2,0.000347,31]
[362148169,1748038249195,-251.2,0.000347,31]
[362148170,1748038249209,-251.2,0.000347,31]
[362148171,1748038249219,-251.2,0.000347,31]
[362148172,1748038249228,-251.2,0.000347,31]
[362148173,1748038249238,-251.2,0.000347,31]
[362148174,1748038249248,-251.2,0.000347,31]
[362148175,1748038249258,-251.2,0.000347,31]
[362148176,1748038249269,-251.2,0.000347,31]
[362148177,1748038249279,-251.2,0.000347,31]
[362148178,1748038249288,-251.2,0.000347,31]
[362148179,1748038249298,-251.2,0.000347,31]
[362148180,1748038249308,-251.2,0.000347,31]
[362148181,1748038249319,-251.2,0.000347,31]
[362148182,1748038249334,-251.2,0.000347,31]
[362148183,1748038249344,-251.2,0.000347,31]
[362148184,1748038249354,-251.2,0.000347,31]
[362148185,1748038249365,-251.2,0.000347,31]
[362148186,1748038249375,-251.2,0.000347,31]
[362148187,1748038249385,-251.2,0.000347,31]
[362148188,1748038249397,-251.2,0.000347,31]
[362148189,1748038249409,-251.2,0.000347,31]
[362148190,1748038249420,-17896.18485575,0.000347,7]
[362148191,1748038249429,-150.052404,0.00034748,120]
[362148192,1748038249439,-1897.84,0.00034777,2]
[362148193,1748038249449,-18783.58,0.000348,14]
[362148194,1748038249459,-863.45,0.000348,14]
[362148195,1748038249469,-218.8,0.000348,10]
[362148196,1748038249480,-154.0,0.00034802,2]
[362148197,1748038249489,-482.0,0.00034803,3]
[362148198,1748038249499,-157.69236961,0.00034816,15]
[362148199,1748038249508,-150.052404,0.00034848,120]
[362148200,1748038249518,-150.0,0.0003488,120]
[362148201,1748038249528,-1000.0,0.00034899,2]
[362148202,1748038249538,-3000.0,0.00034899,2]
[362148203,1748038249548,-10073.80139802,0.000349,2]
[362148204,1748038249558,-20000.0,0.000349,120]
[362148205,1748038249568,-227.01298832,0.000349,7]
[362148206,1748038249578,-300.0,0.000349,12]
[362148207,1748038249587,-170.33310645,0.000349,2]
[362148208,1748038249597,-155.0,0.00034932,2]
[362148209,1748038249608,-6339.07052381,0.00035,7]
[362148210,1748038249617,-433221.67041547,0.00035,60]
[362148211,1748038249627,-238486.54134596,0.00035,30]
[362148212,1748038249820,-4000.90524852,0.00035,30]
[362148213,1748038249833,-1084.65,0.00035,30]
[362148214,1748038249844,-1719.25,0.00035,30]
[362148215,1748038249856,-1669.18813285,0.00035,30]
[362148216,1748038249867,-1180.0196873,0.00035,30]